bitfinex/quotes_ETHUSD_20251201
["timestamp","ask_amount","ask_price","bid_price","bid_amount"]
[1764627187180,0.6707041,2803.5,2802.2,10.70587395]
[1764627187488,0.6707041,2803.5,2802.3,0.405504]
[1764627188409,0.6707041,2803.5,2802.2,10.70587395]
[1764627188410,0.0997041,2803.3,2802.2,10.70587395]
[1764627188610,0.0997041,2803.3,2802.2,7.1372493]
[1764627189174,3.66694211,2803.3,2802.2,10.70587395]
[1764627189410,0.36669421,2803.2,2802.2,11.97488295]
[1764627189610,0.93498975,2803.1,2802.2,11.97488295]
[1764627189814,0.572,2803.1,2802.2,11.97488295]
[1764627189999,0.0997041,2803.0,2802.4,0.405504]
[1764627190382,0.572,2803.1,2802.4,0.405504]
[1764627191212,0.19940821,2802.7,2802.2,1.269009]
[1764627191413,0.572,2802.6,2802.3,3.5684973]
[1764627192490,0.572,2802.6,2802.3,7.1369946]
[1764627193392,0.572,2802.6,2802.0,1.13109811]
[1764627193589,0.572,2802.6,2802.0,0.72559411]
[1764627193779,0.572,2802.6,2801.9,0.72559411]
[1764627193980,0.93598975,2802.6,2801.8,7.13826824]
[1764627194182,1.38638334,2802.6,2801.8,7.13826824]
[1764627194407,1.38638334,2802.6,2801.8,10.70740236]
[1764627194613,0.93598975,2802.6,2801.8,7.13826824]
[1764627194797,0.93598975,2802.6,2802.3,0.001]
[1764627194978,0.572,2802.6,2802.3,0.001]
[1764627195178,0.36398975,2802.4,2802.3,0.001]
[1764627195385,0.19940821,2802.4,2802.3,0.001]
[1764627195944,1.06620548,2802.4,2802.3,0.001]
[1764627196719,1.63820548,2802.4,2802.3,0.001]
[1764627197011,2.39851654,2802.4,2802.3,0.001]
[1764627197416,13.20147205,2802.4,2802.3,0.001]
[1764627197616,2.39851654,2802.4,2802.3,0.001]
[1764627197787,12.33467478,2802.4,2802.3,0.001]
[1764627198114,13.29573504,2802.4,2802.3,0.001]
[1764627198312,6.06114949,2802.4,2802.3,0.001]
[1764627198616,7.10709702,2802.4,2802.3,0.001]
[1764627198779,6.53509702,2802.4,2802.3,0.001]
[1764627198983,8.15719225,2802.4,2802.3,0.001]
[1764627199179,7.75168825,2802.4,2802.3,0.001]
[1764627199400,7.75168825,2802.4,2802.0,0.001]
[1764627199401,0.405504,2802.2,2802.0,0.001]
[1764627199619,0.82529821,2801.8,2801.7,0.001]
[1764627199806,3.88962073,2801.8,2801.7,0.001]
[1764627200004,2.56311327,2801.8,2801.7,0.001]
[1764627200182,2.15760927,2801.8,2801.7,0.001]
[1764627200383,2.15760927,2801.8,2799.4,3.57212963]
[1764627200384,0.0997041,2800.7,2799.4,7.14434727]
[1764627200607,0.0997041,2801.1,2799.5,0.77163473]
[1764627200809,0.0997041,2800.9,2799.5,1.49722884]
[1764627201016,0.0997041,2800.9,2799.5,0.77163473]
[1764627201491,0.86001516,2800.9,2799.6,10.71581652]
[1764627201691,0.19940821,2800.8,2799.7,1.14874513]
[1764627202027,0.572,2800.7,2799.7,1.14874513]
[1764627202191,0.572,2800.7,2799.8,0.405504]
[1764627202911,1.26490945,2801.3,2799.8,0.405504]
[1764627202912,0.572,2800.9,2799.8,0.405504]
[1764627203108,0.572,2800.9,2800.0,0.405504]
[1764627203419,0.75838342,2800.8,2799.9,0.22798432]
[1764627203615,0.75838342,2800.8,2800.1,1.13109811]
[1764627203818,0.75838342,2801.0,2800.1,1.13109811]
[1764627204041,0.75838342,2800.9,2800.3,0.405504]
[1764627204195,0.75838342,2801.0,2800.3,0.405504]
[1764627204397,0.75838342,2800.9,2800.3,0.63706765]
[1764627204596,0.75838342,2800.8,2800.3,0.63706765]
[1764627204798,0.36398975,2800.9,2800.3,0.63706765]
[1764627205108,0.75870531,2800.8,2800.3,0.63706765]
[1764627205320,1.52068209,2801.1,2800.4,0.1821606]
[1764627205321,0.75870531,2800.7,2800.4,0.1821606]
[1764627205498,0.94868209,2801.0,2800.5,7.14158186]
[1764627205700,0.75915529,2800.9,2800.5,7.14158186]
[1764627205897,0.75915529,2800.8,2800.5,3.57079093]
[1764627206217,0.75915529,2800.7,2800.5,7.87890817]
[1764627206389,0.75915529,2800.6,2800.5,4.29638504]
[1764627207490,0.75915529,2800.6,2799.3,3.57225036]
[1764627207687,0.75915529,2800.6,2799.4,11.02380716]
[1764627207688,1.70783738,2800.5,2799.4,11.02380716]
[1764627207917,0.94868209,2800.3,2798.7,1.07339326]
[1764627208223,0.94868209,2799.7,2798.8,7.14591966]
[1764627208427,2.37954148,2799.6,2798.8,11.43347146]
[1764627208592,0.75915529,2799.5,2798.8,11.43347146]
[1764627208799,0.75915529,2799.4,2798.8,7.86051163]
[1764627209043,0.94868209,2799.5,2798.9,1.86894974]
[1764627209044,0.75915529,2799.3,2798.9,1.86894974]
[1764627209235,0.75915529,2799.2,2798.8,3.57295983]
[1764627209537,0.75915529,2799.2,2797.7,7.23458555]
[1764627209538,0.75915529,2799.1,2798.1,3.57380982]
[1764627209742,0.75915529,2799.0,2798.2,2.15516952]
[1764627209894,1.52068209,2799.3,2798.2,1.42957541]
[1764627210089,0.76148599,2799.2,2798.2,1.42957541]
[1764627210394,0.94868209,2798.8,2798.0,3.57398141]
[1764627210595,1.33348599,2798.7,2798.0,3.57398141]
[1764627210797,0.76148599,2798.6,2798.0,3.57398141]
[1764627211100,0.36398975,2798.5,2798.0,3.57398141]
[1764627211293,0.76073499,2798.4,2797.5,7.14924038]
[1764627211493,0.76073499,2798.4,2797.3,0.23072252]
[1764627211494,0.0997041,2798.2,2797.4,7.14949596]
[1764627211694,0.76073499,2798.1,2797.4,7.14949596]
[1764627211990,0.6717041,2798.3,2797.4,7.14949596]
[1764627212213,0.0997041,2798.1,2797.4,7.14949596]
[1764627212422,0.93598975,2798.3,2797.4,7.88751781]
[1764627212622,0.76020375,2798.2,2797.4,7.88851781]
[1764627212820,0.94868209,2798.6,2797.5,0.72559411]
[1764627213034,0.76018755,2798.5,2797.5,0.72559411]
[1764627213199,2.28086964,2798.4,2797.7,0.405504]
[1764627213520,0.76018755,2798.3,2797.9,0.72559411]
[1764627213731,0.76018755,2798.2,2797.1,0.001]
[1764627214029,1.33218755,2798.1,2797.5,7.14912313]
[1764627214215,0.76018755,2798.0,2797.6,0.72559411]
[1764627214419,0.76018755,2797.9,2797.6,0.72559411]
[1764627214592,0.572,2798.1,2797.6,0.72559411]
[1764627214799,0.7596222,2798.0,2797.7,0.405504]
[1764627215008,0.7596222,2797.9,2797.7,0.405504]
[1764627215210,1.52068209,2798.3,2797.6,1.51316583]
[1764627215427,0.75929918,2798.2,2797.6,1.51316583]
[1764627215624,0.75929918,2798.1,2797.8,0.72559411]
[1764627215838,0.75929918,2798.0,2797.8,0.72559411]
[1764627216061,0.75929918,2798.0,2797.7,7.1487293]
[1764627216062,0.75929918,2797.9,2797.7,3.57436465]
[1764627216257,0.75909752,2797.8,2797.7,3.57436465]
[1764627217541,0.75909752,2797.8,2797.5,0.72559411]
[1764627217743,0.94868209,2798.3,2797.6,1.55058781]
[1764627217947,0.75884445,2798.2,2797.6,1.55058781]
[1764627218150,0.94868209,2798.3,2797.6,1.55058781]
[1764627218151,0.75884445,2798.1,2797.6,1.55058781]
[1764627218353,0.75884445,2798.0,2797.6,1.55058781]
[1764627218517,0.94868209,2798.3,2797.6,1.55058781]
[1764627218719,0.75882268,2798.2,2797.7,0.22761819]
[1764627218944,0.75882268,2798.1,2797.7,0.22761819]
[1764627219114,0.75882268,2798.0,2797.7,0.22761819]
[1764627219317,1.52068209,2798.3,2797.7,0.22761819]
[1764627219613,0.75893816,2798.2,2797.8,0.72559411]
[1764627219827,0.75893816,2798.1,2797.8,0.72559411]
[1764627220148,0.75893816,2798.0,2797.8,0.72559411]
[1764627220315,0.75893816,2797.9,2797.8,0.72559411]
[1764627220512,1.52068209,2798.3,2797.9,0.405504]
[1764627220513,0.94868209,2798.3,2797.9,0.405504]
[1764627220717,0.72559411,2799.3,2797.8,1.62753483]
[1764627220718,0.75911877,2798.2,2797.8,1.62753483]
[1764627221017,0.94868209,2798.6,2797.8,0.72559411]
[1764627221217,1.70814303,2798.5,2797.8,0.72559411]
[1764627221417,0.75946094,2798.4,2797.8,0.72559411]
[1764627221618,0.75946094,2798.3,2798.0,0.72559411]
[1764627221911,0.75946094,2798.2,2798.0,0.72559411]
[1764627222126,0.75986983,2798.1,2798.0,0.72559411]
[1764627222735,0.75986983,2798.1,2797.6,3.57441538]
[1764627222934,0.75986983,2798.0,2797.6,3.57441538]
[1764627223134,0.75986983,2797.9,2797.6,7.1489078]
[1764627223343,0.75986983,2797.8,2797.6,7.1489078]
[1764627223547,0.75986983,2797.7,2797.6,3.57441538]
[1764627223846,0.75986983,2797.7,2797.5,0.72559411]
[1764627224045,0.94868209,2798.0,2797.5,0.72559411]
[1764627224357,0.76086243,2797.9,2797.5,0.72559411]
[1764627224649,0.76086243,2797.8,2797.6,0.405504]
[1764627224848,0.94868209,2798.1,2797.6,0.405504]
[1764627225153,0.76084073,2798.0,2797.8,0.405504]
[1764627225320,0.573,2798.5,2797.8,0.405504]
[1764627225321,0.76084073,2797.9,2797.8,0.405504]
[1764627225841,0.76084073,2797.9,2797.8,3.9797409]
[1764627230139,1.70952282,2797.9,2797.8,3.9797409]
[1764627232968,0.95609647,2798.1,2797.8,8.85257191]
[1764627233125,1.26490945,2798.4,2798.0,0.405504]
[1764627234030,1.89736418,2798.6,2798.0,0.405504]
[1764627234031,1.89736418,2798.7,2798.2,1.13109811]
[1764627234433,1.89736418,2798.6,2798.4,0.405504]
[1764627235151,1.89736418,2798.5,2798.3,0.573]
[1764627235329,2.53116716,2798.7,2798.1,7.14770736]
[1764627235537,1.91702485,2798.3,2798.1,7.14770736]
[1764627235861,1.91702485,2798.3,2798.2,0.72559411]
[1764627236152,2.53116716,2798.6,2798.2,7.87304603]
[1764627236453,2.53116716,2798.5,2798.2,7.87304603]
[1764627236632,2.53116716,2798.5,2798.2,7.14745192]
[1764627237032,2.53116716,2798.6,2798.2,7.14745192]
[1764627237233,2.53116716,2798.5,2798.2,7.14745192]
[1764627238024,4.14290612,2798.9,2798.0,0.405504]
[1764627238246,0.7715612,2798.8,2798.0,0.405504]
[1764627238658,0.7715612,2798.8,2798.0,1.13109811]
[1764627239353,0.573,2798.7,2798.0,1.13109811]
[1764627240254,0.573,2798.7,2798.1,7.14770736]
[1764627240656,0.573,2798.7,2798.1,3.57385368]
[1764627240857,0.37662783,2798.6,2798.1,7.14770736]
[1764627241362,0.37662783,2798.6,2798.1,3.57385368]
[1764627241582,0.37662783,2798.6,2798.1,7.14770736]
[1764627241966,0.37662783,2798.6,2797.8,0.405504]
[1764627242175,0.4522745,2798.5,2798.0,0.72559411]
[1764627243029,0.4522745,2798.5,2797.6,7.14898484]
[1764627243030,4.02566717,2798.5,2797.6,7.14898484]
[1764627243230,4.02566717,2798.5,2797.7,0.72559411]
[1764627244133,7.59905984,2798.5,2797.7,0.72559411]
[1764627244355,4.69036973,2798.4,2797.7,3.57436202]
[1764627244551,0.573,2798.3,2797.7,3.57436202]
[1764627244755,0.573,2798.3,2797.7,7.14872667]
[1764627246434,0.573,2798.4,2797.6,1.13109811]
[1764627246645,0.573,2798.4,2797.6,2.31678961]
[1764627247066,0.4522745,2798.5,2797.6,2.31678961]
[1764627247270,0.573,2798.5,2797.6,2.31678961]
[1764627248650,0.573,2798.5,2797.8,1.13109811]
[1764627249463,3.19327829,2798.9,2797.8,1.13109811]
[1764627249464,0.573,2798.6,2797.8,1.13109811]
[1764627250056,0.67660832,2798.8,2797.8,1.13109811]
[1764627250366,0.573,2798.8,2797.8,1.13109811]
[1764627250566,0.002,2798.5,2797.8,1.13109811]
[1764627250880,0.002,2798.5,2798.0,1.13109811]
[1764627251444,0.002,2798.5,2798.2,0.405504]
[1764627251979,0.002,2798.5,2798.1,0.573]
[1764627253069,0.002,2798.5,2798.2,3.57372596]
[1764627253776,0.002,2798.5,2797.8,1.70409811]
[1764627253986,0.002,2798.5,2797.8,2.94692622]
[1764627254973,0.002,2798.5,2797.9,7.1482183]
[1764627256862,0.002,2798.5,2797.6,0.001]
[1764627257062,0.002,2798.5,2797.9,3.57410915]
[1764627257267,0.002,2798.5,2797.6,0.574]
[1764627257464,0.41482803,2798.4,2797.7,7.14861079]
[1764627258442,0.002,2798.5,2797.7,7.14861079]
[1764627258671,0.002,2798.5,2797.8,1.13109811]
[1764627259084,0.002,2798.5,2798.0,1.13109811]
[1764627260244,0.002,2798.5,2798.0,1.70409811]
[1764627261291,0.002,2798.5,2798.1,7.14770736]
[1764627261461,0.002,2798.5,2798.1,3.57385368]
[1764627261775,0.002,2798.5,2798.1,7.14770736]
[1764627262149,0.002,2798.5,2797.6,0.001]
[1764627262345,0.002,2798.5,2797.7,1.29759411]
[1764627263356,0.002,2798.5,2797.8,3.5742369]
[1764627263788,0.002,2798.5,2797.7,4.87188973]
[1764627264417,0.002,2798.5,2797.7,8.44625438]
[1764627264853,0.002,2798.5,2797.7,7.87425438]
[1764627265057,0.002,2798.5,2797.7,5.08751517]
[1764627265460,0.002,2798.5,2797.7,0.78762544]
[1764627265677,0.002,2798.5,2797.6,7.14998484]
[1764627265869,0.002,2798.5,2797.7,0.72559411]
[1764627267593,0.002,2798.5,2797.8,3.5742369]
[1764627268785,0.002,2798.5,2797.9,1.70309811]
[1764627268986,0.002,2798.5,2798.0,0.88515719]
[1764627269709,0.002,2798.5,2798.1,3.57385368]
[1764627269868,0.002,2798.5,2798.1,7.14770736]
[1764627271068,0.002,2798.5,2798.1,3.57385368]
[1764627271511,0.002,2798.5,2798.1,7.14770736]
[1764627271718,0.002,2798.5,2798.3,3.57359825]
[1764627271967,0.002,2798.5,2798.2,0.72559411]
[1764627273663,0.002,2798.5,2798.3,7.1471965]
[1764627273868,0.002,2798.5,2798.2,7.14745184]
[1764627274780,0.002,2798.5,2798.2,3.57372588]
[1764627274988,0.002,2798.5,2798.3,0.41457259]
[1764627275573,1.07839823,2798.4,2797.6,0.001]
[1764627275774,7.7191965,2798.3,2797.6,0.001]
[1764627275968,5.1258907,2798.3,2797.6,0.001]
[1764627276267,7.7191965,2798.3,2797.6,0.001]
[1764627276486,0.80831863,2798.2,2797.6,0.001]
[1764627277384,0.574,2798.5,2797.6,0.001]
[1764627277778,7.72075281,2798.5,2797.6,0.001]
[1764627278106,4.51133261,2798.5,2797.6,0.72659411]
[1764627278598,0.93798975,2798.5,2797.6,0.72659411]
[1764627278768,4.5113382,2798.5,2797.6,0.72659411]
[1764627278972,4.96247202,2798.5,2797.6,0.72659411]
[1764627279387,1.02513382,2798.5,2797.6,0.72659411]
[1764627279709,8.17184545,2798.5,2797.6,0.72659411]
[1764627280100,8.17184545,2798.5,2797.7,3.57436465]
[1764627280485,0.36398975,2798.4,2797.7,3.57436465]
[1764627280691,8.17184545,2798.5,2797.7,3.57436465]
[1764627280892,0.85358352,2798.4,2797.7,3.57436465]
[1764627281612,3.57359825,2798.3,2797.7,3.57436465]
[1764627281813,3.57359825,2798.3,2797.6,0.72659411]
[1764627281814,3.57359825,2798.3,2797.6,3.57548467]
[1764627282716,3.57359825,2798.3,2797.6,7.14997709]
[1764627283013,3.57359825,2798.3,2797.6,3.57548467]
[1764627283383,0.95328762,2798.4,2797.6,3.57548467]
[1764627283384,4.52681227,2798.4,2797.6,7.14997709]
[1764627283581,4.42710817,2798.4,2797.6,0.72659411]
[1764627284211,3.57352465,2798.4,2797.6,0.72659411]
[1764627285417,0.002,2798.5,2797.7,0.405504]
[1764627285587,0.002,2798.5,2797.8,7.1494738]
[1764627286812,0.002,2798.5,2797.8,0.72659411]
[1764627287116,0.002,2798.5,2797.9,0.88527789]
[1764627287292,0.002,2798.5,2798.0,0.405504]
[1764627287697,0.002,2798.5,2798.2,0.72559411]
[1764627289713,0.002,2798.5,2798.3,7.1471965]
[1764627290292,0.002,2798.5,2798.3,3.57359825]
[1764627291023,0.002,2798.5,2797.5,3.57459025]
[1764627291024,0.572,2798.4,2797.5,3.57459025]
[1764627291225,0.572,2798.4,2797.6,3.57549149]
[1764627291521,0.572,2798.4,2797.7,3.57434384]
[1764627291730,4.14547832,2798.4,2797.6,0.001]
[1764627291928,4.91754972,2798.4,2797.6,0.001]
[1764627293430,4.91754972,2798.4,2797.8,0.001]
[1764627295900,0.572,2798.3,2797.8,0.001]
[1764627300828,4.14562633,2798.3,2797.8,0.001]
[1764627301249,0.572,2798.3,2797.8,0.001]
[1764627301448,0.002,2798.5,2797.8,0.001]
[1764627301733,0.574,2798.5,2797.8,0.001]
[1764627301944,0.574,2798.5,2797.8,1.18665754]
[1764627302927,0.574,2798.5,2797.9,7.1482183]
[1764627303432,0.002,2798.5,2798.0,0.72559411]
[1764627303741,0.002,2798.5,2798.1,1.14479216]
[1764627304598,0.002,2798.5,2798.1,1.71679216]
[1764627304839,0.002,2798.5,2798.2,0.405504]
[1764627305140,0.002,2799.3,2798.4,1.13109811]
[1764627305312,0.002,2799.4,2799.3,0.405504]
[1764627305637,4.47125343,2801.8,2799.3,0.405504]
[1764627305638,0.002,2801.8,2799.3,1.70309811]
[1764627305812,0.002,2801.8,2800.3,1.13109811]
[1764627306013,0.002,2801.8,2800.5,0.405504]
[1764627306328,0.002,2801.8,2801.3,1.13109811]
[1764627306526,0.002,2801.8,2801.2,7.75197507]
[1764627306527,0.002,2801.8,2801.5,1.13109811]
[1764627307105,0.002,2801.8,2801.7,1.13109811]
[1764627307304,0.002,2801.8,2801.7,1.5960056]
[1764627307523,0.002,2801.8,2801.7,2.1680056]
[1764627307906,0.002,2801.8,2801.7,1.44241149]
[1764627308126,0.002,2801.8,2801.7,0.977504]
[1764627308336,0.002,2801.8,2801.3,3.5697616]
[1764627308537,0.002,2801.8,2801.5,0.405504]
[1764627308746,0.002,2801.8,2800.6,7.81201022]
[1764627308954,0.002,2801.8,2800.8,0.405504]
[1764627309104,0.002,2801.8,2800.9,0.572]
[1764627309308,0.002,2801.8,2801.1,0.405504]
[1764627309623,0.002,2801.8,2801.1,1.13109811]
[1764627309826,0.002,2801.8,2801.3,0.405504]
[1764627310423,0.002,2801.8,2801.5,0.405504]
[1764627311142,0.002,2801.8,2801.7,0.72559411]
[1764627311940,0.002,2801.8,2801.5,4.70059076]
[1764627312139,0.002,2801.8,2800.3,7.1420919]
[1764627312437,0.002,2801.8,2800.4,0.572]
[1764627312639,0.002,2801.8,2800.4,1.29759411]
[1764627312842,0.002,2801.8,2800.5,0.405504]
[1764627313136,0.002,2801.8,2800.7,1.13109811]
[1764627313343,0.002,2801.8,2800.8,1.39924249]
[1764627313738,0.002,2801.8,2800.9,0.572]
[1764627314312,0.002,2801.8,2801.0,7.24001022]
[1764627314828,0.002,2801.8,2801.4,7.24001022]
[1764627315029,0.002,2801.8,2801.5,0.572]
[1764627315230,0.002,2801.8,2801.6,4.35058994]
[1764627316341,0.002,2801.8,2801.7,1.13109811]
[1764627316817,0.002,2801.8,2801.7,1.70309811]
[1764627317142,0.002,2801.8,2801.7,5.27235962]
[1764627318343,0.002,2801.8,2801.7,4.70035962]
[1764627318662,0.002,2801.8,2801.7,5.60545458]
[1764627318945,0.002,2801.8,2801.7,5.27235962]
[1764627319942,0.002,2801.8,2801.7,4.70035962]
[1764627320162,0.002,2801.8,2801.7,0.72559411]
[1764627320445,0.002,2801.8,2801.7,1.29759411]
[1764627320647,0.002,2801.8,2800.6,7.24001022]
[1764627320945,0.002,2801.8,2800.9,0.572]
[1764627321118,0.002,2801.8,2800.9,1.29759411]
[1764627321312,0.002,2801.8,2801.1,0.72559411]
[1764627321517,0.002,2801.8,2800.9,0.572]
[1764627321922,0.002,2801.8,2801.0,0.405504]
[1764627322130,0.002,2801.8,2801.0,0.8602815]
[1764627322318,0.002,2801.8,2801.0,1.58587561]
[1764627322531,0.002,2801.8,2801.7,7.64551422]
[1764627322731,0.002,2801.8,2801.7,8.94310833]
[1764627322931,0.002,2801.8,2801.7,8.37110833]
[1764627323130,0.002,2802.1,2801.8,1.13109811]
[1764627323429,7.24001022,2805.3,2801.8,1.13109811]
[1764627323430,7.12965294,2805.2,2802.0,1.13109811]
[1764627323749,7.12965294,2805.2,2801.9,25.77772991]
[1764627323750,0.36398975,2804.8,2803.2,0.405504]
[1764627323953,0.72559411,2805.1,2802.8,0.72559411]
[1764627323954,0.71296529,2805.1,2803.4,0.405504]
[1764627324139,1.1979463,2805.0,2803.4,0.405504]
[1764627324453,1.1979463,2805.0,2802.8,0.72559411]
[1764627324754,0.36398975,2804.5,2802.9,0.405504]
[1764627324920,0.72559411,2804.9,2802.9,0.977504]
[1764627324921,0.36398975,2804.3,2802.9,0.977504]
[1764627325454,0.36398975,2804.3,2803.0,21.40563678]
[1764627325654,3.66600407,2805.6,2803.8,1.13109811]
[1764627325969,0.002,2805.6,2804.4,0.405504]
[1764627326147,0.002,2805.6,2804.5,1.33955142]
[1764627327624,0.002,2805.6,2804.7,8.37110833]
[1764627327823,0.002,2805.6,2805.2,1.13109811]
[1764627328026,0.002,2805.6,2805.5,7.24001022]
[1764627328257,0.002,2805.6,2805.5,1.13109811]
[1764627328831,0.002,2805.6,2805.5,1.78737054]
[1764627329534,0.002,2805.6,2805.5,5.35179755]
[1764627331058,0.002,2805.6,2805.5,5.27052512]
[1764627332559,0.002,2805.6,2805.5,4.69552512]
[1764627332732,0.002,2805.6,2805.5,5.27052512]
[1764627333128,0.002,2805.6,2805.5,11.57787557]
[1764627333661,0.002,2805.6,2805.5,3.56442701]
[1764627334169,0.002,2805.6,2805.5,4.69552512]
[1764627334950,0.002,2805.6,2805.5,3.96993101]
[1764627335250,0.002,2805.6,2805.5,4.69552512]
[1764627335961,0.002,2805.6,2805.5,0.72559411]
[1764627336164,0.002,2805.6,2805.5,4.29002112]
[1764627336363,0.002,2805.6,2805.5,11.84583568]
[1764627338863,0.002,2805.6,2805.5,12.41983568]
[1764627346785,0.002,2805.6,2805.5,6.11148523]
[1764627347380,0.002,2805.6,2805.5,5.70598123]
[1764627347583,0.002,2805.6,2805.5,6.11148523]
[1764627348583,0.002,2805.6,2805.5,13.32858823]
[1764627350382,0.002,2805.6,2805.5,12.92308423]
[1764627350756,0.002,2805.6,2805.5,12.35008423]
[1764627350968,0.002,2805.6,2805.5,13.32858823]
[1764627352755,0.002,2805.9,2805.6,1.13109811]
[1764627352954,0.002,2805.9,2805.7,0.65042315]
[1764627353581,0.002,2805.9,2805.8,0.978504]
[1764627353783,0.002,2805.9,2805.8,0.405504]
[1764627353982,0.002,2805.9,2805.8,0.978504]
[1764627354213,0.002,2805.9,2805.8,4.28964001]
[1764627354488,0.002,2805.9,2805.8,4.86264001]
[1764627355183,0.002,2805.9,2805.8,6.11082458]
[1764627355385,0.002,2805.9,2805.8,4.86264001]
[1764627359762,0.002,2805.9,2805.8,4.28964001]
[1764627361175,0.002,2805.9,2805.5,3.56542609]
[1764627361599,0.0997041,2805.8,2805.5,0.001]
[1764627361802,0.36398975,2805.6,2805.5,0.001]
[1764627361986,0.36398975,2805.6,2803.7,3.56671488]
[1764627361987,0.405504,2805.5,2803.7,3.56671488]
[1764627362187,3.20767434,2804.6,2803.8,0.92967149]
[1764627362500,3.20767434,2805.1,2803.7,7.13343029]
[1764627362797,1.08958386,2804.9,2801.5,0.001]
[1764627362989,0.36398975,2804.6,2802.3,7.217103]
[1764627363184,3.57166409,2804.4,2802.8,0.72559411]
[1764627363392,0.36398975,2804.4,2802.9,0.574]
[1764627363978,0.36398975,2804.4,2803.0,0.405504]
[1764627364179,0.36398975,2804.1,2803.0,0.405504]
[1764627364395,0.36398975,2804.1,2802.3,7.217103]
[1764627364601,0.36398975,2804.1,2802.4,1.2957103]
[1764627364788,3.5663338,2804.0,2802.6,0.72559411]
[1764627365189,7.217103,2803.2,2798.3,12.65749933]
[1764627365390,7.217103,2803.2,2801.6,0.428]
[1764627365599,0.36398975,2803.3,2801.6,0.428]
[1764627365910,1.29959411,2803.5,2800.9,3.57020982]
[1764627365911,0.36398975,2803.0,2800.9,3.57020982]
[1764627366117,0.72559411,2802.7,2800.2,3.57113681]
[1764627366288,0.36398975,2802.2,2801.2,3.56986262]
[1764627366477,0.36398975,2802.2,2800.8,0.574]
[1764627366478,0.36398975,2802.2,2801.4,3.56953561]
[1764627366678,0.36398975,2802.2,2801.2,3.56988253]
[1764627366915,0.36398975,2802.2,2800.8,0.574]
[1764627367106,0.36398975,2802.1,2800.9,7.14056196]
[1764627367310,0.36398975,2802.1,2800.6,3.57065531]
[1764627367619,1.49508786,2802.1,2799.7,7.217103]
[1764627367780,0.5052081,2801.6,2799.6,3.57185662]
[1764627367984,9.02190521,2801.6,2800.2,3.57106604]
[1764627368201,9.92409573,2801.6,2800.3,3.57104236]
[1764627368405,10.4487356,2801.6,2800.1,3.5712739]
[1764627369010,14.01812452,2801.6,2799.7,7.14355971]
[1764627369263,14.01812452,2801.6,2799.7,3.57174845]
[1764627369516,0.574,2802.0,2800.2,0.405504]
[1764627369877,0.0997041,2801.8,2800.2,0.405504]
[1764627370083,14.26991544,2803.1,2800.2,0.405504]
[1764627370084,0.36398975,2802.3,2800.2,0.405504]
[1764627370279,0.575,2802.2,2800.2,0.405504]
[1764627370589,18.44417945,2803.1,2800.6,1.13109811]
[1764627370590,3.56747886,2803.1,2800.6,1.13109811]
[1764627370799,0.36398975,2802.7,2800.6,1.13109811]
[1764627371122,0.36398975,2802.7,2800.5,8.31674287]
[1764627371123,0.575,2802.6,2800.8,1.13109811]
[1764627372605,0.36398975,2802.4,2800.8,1.13109811]
[1764627373037,0.36398975,2802.1,2800.9,7.14056196]
[1764627373192,0.36398975,2802.3,2800.9,10.71084294]
[1764627373726,0.36398975,2802.3,2800.9,7.14056196]
[1764627373891,0.36398975,2802.3,2800.9,10.71084294]
[1764627374242,0.77114853,2802.4,2801.0,1.13109811]
[1764627374408,0.575,2802.5,2801.0,1.13109811]
[1764627374728,7.13444868,2803.3,2801.0,1.70609811]
[1764627375040,0.575,2803.2,2801.4,1.13109811]
[1764627375531,7.46077399,2803.9,2801.4,1.13109811]
[1764627375532,0.575,2804.0,2801.7,1.13109811]
[1764627375837,0.575,2804.0,2801.4,1.70609811]
[1764627375838,0.575,2804.0,2801.9,0.405504]
[1764627376004,0.575,2804.0,2801.4,0.72559411]
[1764627376005,0.0997041,2803.4,2801.4,0.72559411]
[1764627376326,0.19940821,2802.8,2801.4,0.72559411]
[1764627376492,0.0997041,2803.0,2801.5,1.14459076]
[1764627376698,0.405504,2803.2,2801.5,1.14459076]
[1764627376917,0.36398975,2802.7,2801.5,1.14459076]
[1764627377123,3.93209243,2802.7,2801.8,0.72559411]
[1764627377343,0.36398975,2802.7,2801.8,0.72559411]
[1764627377540,0.0997041,2803.0,2801.8,0.72559411]
[1764627377741,0.575,2803.3,2801.8,0.72559411]
[1764627377940,0.36398975,2803.5,2801.9,1.90576802]
[1764627378153,0.576,2803.3,2801.9,2.48176802]
[1764627378356,0.576,2803.9,2802.3,1.13109811]
[1764627378525,0.576,2803.9,2802.3,0.405504]
[1764627379243,4.14256984,2803.9,2802.5,0.72559411]
[1764627379424,4.14256984,2803.9,2802.6,1.1430704]
[1764627379627,7.70913968,2803.9,2802.6,1.1430704]
[1764627379845,0.575,2803.9,2802.6,1.1430704]
[1764627380352,0.575,2803.9,2802.2,3.56852152]
[1764627380353,0.36398975,2803.6,2801.9,1.50026402]
[1764627380567,0.405504,2803.2,2801.7,7.13852302]
[1764627380757,1.30059411,2803.9,2801.7,7.13852302]
[1764627380758,0.576,2803.1,2801.7,7.13852302]
[1764627380940,0.0997041,2802.9,2801.8,0.72559411]
[1764627381144,7.13572142,2802.8,2801.5,0.001]
[1764627381458,0.82324665,2802.7,2801.5,0.001]
[1764627381824,0.36398975,2802.6,2801.5,0.001]
[1764627382432,0.72354255,2802.7,2801.5,0.001]
[1764627382635,0.36398975,2802.6,2801.5,0.001]
[1764627382955,1.0875323,2802.7,2801.5,0.001]
[1764627383323,0.72354255,2802.7,2801.5,0.406504]
[1764627383524,0.576,2802.8,2801.5,0.406504]
[1764627383722,0.0997041,2803.3,2801.8,1.13109811]
[1764627383921,0.19940821,2803.9,2802.3,1.13109811]
[1764627384139,0.36398975,2804.4,2802.5,0.405504]
[1764627384357,0.92098975,2804.4,2802.7,0.405504]
[1764627384554,0.92098975,2804.4,2802.8,0.576]
[1764627385364,4.48687782,2804.4,2803.0,0.72559411]
[1764627385583,8.05276589,2804.4,2803.0,0.72559411]
[1764627385778,0.80527659,2804.3,2803.0,0.72559411]
[1764627386781,7.9808707,2804.3,2802.9,3.56773341]
[1764627386979,0.405504,2804.2,2801.8,7.13826824]